Workbook

Sheet PS 101
B1: SOUPIS PRACÍ / ROZPOČET | L1: =D3 -> PS 101
B2: Stavba: | F2: Sanace náspu Pastuchovice trati Plzeň - Žatec | I2: CELKEM: | K2: =SUMIFS(L:L,B:B,"SOUČET") -> 4627302.12
B3: SO/PS: | D3: PS 101 | F3: PS 101 Přeložka drážních kabelů
B4: Kategorie monitoringu: | F4: =IF(E4='Kategorie monitoringu'!A1,'Kategorie monitoringu'!B1,IF(E4='Kategorie monitoringu'!A2,'Kategorie monitoringu'!B2,IF(E4='Kategorie monitoringu'!A3,'Kategorie monitoringu'!B3,IF(E4='Kategorie monitoringu'!A4,'Kategorie monitoringu'!B4,IF(E4='Kategorie monitoringu'!A5,'Kategorie monitoringu'!B5,IF(E4='Kategorie monitoringu'!A6,'Kategorie monitoringu'!B6,IF(E4='Kategorie monitoringu'!A7,'Kategorie monitoringu'!B7,IF(E4='Kategorie monitoringu'!A8,'Kategorie monitoringu'!B8,IF(E4='Kategorie monitoringu'!A9,'Kategorie monitoringu'!B9,IF(E4='Kategorie monitoringu'!A10,'Kategorie monitoringu'!B10,IF(E4='Kategorie monitoringu'!A11,'Kategorie monitoringu'!B11,IF(E4='Kategorie monitoringu'!A12,'Kategorie monitoringu'!B12,IF(E4='Kategorie monitoringu'!A13,'Kategorie monitoringu'!B13,IF(E4='Kategorie monitoringu'!A14,'Kategorie monitoringu'!B14,IF(E4='Kategorie monitoringu'!A15,'Kategorie monitoringu'!B15,IF(E4='Kategorie monitoringu'!A16,'Kategorie monitoringu'!B16,IF(E4='Kategorie monitoringu'!A17,'Kategorie monitoringu'!B17,IF(E4='Kategorie monitoringu'!A18,'Kategorie monitoringu'!B18,IF(E4='Kategorie monitoringu'!A19,'Kategorie monitoringu'!B19,IF(E4='Kategorie monitoringu'!A20,'Kategorie monitoringu'!B20,IF(E4='Kategorie monitoringu'!A21,'Kategorie monitoringu'!B21,IF(E4='Kategorie monitoringu'!A22,'Kategorie monitoringu'!B22,IF(E4='Kategorie monitoringu'!A23,'Kategorie monitoringu'!B23,IF(E4='Kategorie monitoringu'!A24,'Kategorie monitoringu'!B24,IF(E4='Kategorie monitoringu'!A25,'Kategorie monitoringu'!B25,""))))))))))))))))))))))))) ->  | I4: Klasifikace SO/PS:
B5: Stupeň dokumentace: | E5: Stádium 3 | F5: =IF((E5="Stádium 2")," Dokumentace pro územní řízení - DUR",(IF((E5="Stádium 3")," Projektová dokumentace (DOS/DSP)",""))) -> Projektová dokumentace (DOS/DSP) | I5: ISPROFIN:
B6: Majetek: | E6: SŽDC s.o. | I6: Označení (S-kód):
B7: Zahájení realizace SO/PS: | E7: 2018-04-01 | F7: Zpracovatel: | I7: Cenová úroveň: | K7: 2018
B8: Ukončení realizace SO/PS. | E8: 2018-10-01 | F8: Obchodní název firmy/společnosti, v případě fyzické osoby podnikající IČO | G8: Starmon s.r.o. | I8: Datum zpracování: | K8: 2018-01-24
B9: =F2 -> Sanace náspu Pastuchovice trati Plzeň - Žatec | K9: =$I$5 -> ISPROFIN: | L9: =K5 -> 0
B10: Poř. číslo | C10: Kód položky | D10: Varianta | E10: Cenová soustava | F10: Název položky/dílu | G10: MJ | H10: Množství | I10: Jednotková hmotnost | J10: Celková hmotnost | K10: Cena
K12: Jednotková | L12: Celkem
A13: D | B13: Díl: | C13: 1 | F13: Zemní práce a kabelizace
A14: P | B14: =1+MAX($B$13:B13) -> 1 | C14: 13273 | D14: 1 | E14: OTSKP-ŽS | F14: HLOUBENÍ RÝH ŠÍŘ DO 2M PAŽ I NEPAŽ TŘ. I | G14: m3 | H14: =24+1089 -> 1113 | K14: 246 | L14: =ROUND((ROUND(H14,3))*(ROUND(K14,2)),2) -> 273798
A15: PP | F15: Výměra: 2300*0,35*0,8+480*0,6*1,5+75*0,35*0,5+24=1113
A16: VV | F16: Technická specifikace položky odpovídá příslušné cenové soustavě.
A17: P | B17: =1+MAX($B$13:B14) -> 2 | C17: 702111 | D17: 1 | E17: OTSKP-ŽS | F17: KABELOVÝ ŽLAB ZEMNÍ VČETNĚ KRYTU SVĚTLÉ ŠÍŘKY DO 120 MM | G17: m | H17: 437 | K17: 282 | L17: =ROUND((ROUND(H17,3))*(ROUND(K17,2)),2) -> 123234
A18: PP | F18: Výměra: 270+27+75+65=437 Výměra obsahuje 10 % navýšení délky pro případ poškození při překládce.
A19: VV | F19: Technická specifikace položky odpovídá příslušné cenové soustavě.
A20: P | B20: =1+MAX($B$13:B17) -> 3 | C20: 702231 | D20: 1 | E20: OTSKP-ŽS | F20: KABELOVÁ CHRÁNIČKA ZEMNÍ DĚLENÁ DN DO 100 MM | G20: m | H20: 1820 | K20: 413 | L20: =ROUND((ROUND(H20,3))*(ROUND(K20,2)),2) -> 751660
A21: PP | F21: Výměra: 2*(225+195+60+160+270)=1820
A22: VV | F22: Technická specifikace položky odpovídá příslušné cenové soustavě.
A23: P | B23: =1+MAX($B$13:B20) -> 4 | C23: 702610 | D23: 1 | E23: OTSKP-ŽS | F23: ODKRYTÍ A ZAKRYTÍ KABELOVÉHO ŽLABU | G23: m | H23: =H17 -> 437 | K23: 65 | L23: =ROUND((ROUND(H23,3))*(ROUND(K23,2)),2) -> 28405
A24: PP | F24: Výměra položky 702111.
A25: VV | F25: Technická specifikace položky odpovídá příslušné cenové soustavě.
A26: P | B26: =1+MAX($B$13:B23) -> 5 | C26: 702620 | D26: 1 | E26: OTSKP-ŽS | F26: ODKRYTÍ A ZAKRYTÍ KABELŮ KRYTÝCH FÓLIÍ, PÁSEM NEBO DESKOU | G26: m | H26: 2780 | K26: 45 | L26: =ROUND((ROUND(H26,3))*(ROUND(K26,2)),2) -> 125100
A27: PP | F27: Délka všech definitivních i provizorních kab. tras s výjimkou provizorní trasy v km 151,235
A28: VV | F28: Technická specifikace položky odpovídá příslušné cenové soustavě.
A29: P | B29: =1+MAX($B$13:B28) -> 6 | C29: 702901 | D29: 1 | E29: OTSKP-ŽS | F29: ZASYPÁNÍ KABELOVÉHO ŽLABU VRSTVOU Z PŘESÁTÉHO PÍSKU SVĚTLÉ ŠÍŘKY DO 120 MM | G29: m | H29: =H17 -> 437 | K29: 60 | L29: =ROUND((ROUND(H29,3))*(ROUND(K29,2)),2) -> 26220
A30: PP | F30: Výměra položky 702111.
A31: VV | F31: Technická specifikace položky odpovídá příslušné cenové soustavě.
A32: P | B32: =1+MAX($B$13:B31) -> 7 | C32: 17411 | D32: 1 | E32: OTSKP-ŽS | F32: ZÁSYP JAM A RÝH ZEMINOU SE ZHUTNĚNÍM. | G32: m3 | H32: =H14 -> 1113 | K32: 105 | L32: =ROUND((ROUND(H32,3))*(ROUND(K32,2)),2) -> 116865
A33: PP | F33: Zasypání kabelových tras materiálem získaným hloubením rýh položkou 13273.
A34: VV | F34: Technická specifikace položky odpovídá příslušné cenové soustavě.
A35: P | B35: =1+MAX($B$13:B34) -> 8 | C35: 709611 | D35: 1 | E35: OTSKP-ŽS | F35: DEMONTÁŽ KABELOVÉHO ŽLABU/LIŠTY VČETNĚ KRYTU | G35: m | H35: 345 | K35: 109 | L35: =ROUND((ROUND(H35,3))*(ROUND(K35,2)),2) -> 37605
A36: PP | F36: Délka provizorních kabelových tras.
A37: VV | F37: Technická specifikace položky odpovídá příslušné cenové soustavě.
A38: P | B38: =1+MAX($B$13:B37) -> 9 | C38: 709400 | D38: 1 | E38: OTSKP-ŽS | F38: ZATAŽENÍ LANKA DO CHRÁNIČKY NEBO ŽLABU | G38: m | H38: 2520 | K38: 33 | L38: =ROUND((ROUND(H38,3))*(ROUND(K38,2)),2) -> 83160
A39: PP | F39: Zatažení lanka do HDPE neobsazené optotrubky.
A40: VV | F40: Technická specifikace položky odpovídá příslušné cenové soustavě.
A41: P | B41: =1+MAX($B$13:B40) -> 10 | C41: 742P13 | D41: 1 | E41: OTSKP-ŽS | F41: ZATAŽENÍ KABELU DO CHRÁNIČKY - KABEL DO 4 KG/M | G41: m | H41: =H20 -> 1820 | K41: 57 | L41: =ROUND((ROUND(H41,3))*(ROUND(K41,2)),2) -> 103740
A42: PP | F42: Dva kabely v délce 910 metrů.
A43: VV | F43: Technická specifikace položky odpovídá příslušné cenové soustavě.
A44: P | B44: =1+MAX($B$13:B43) -> 11 | C44: 75A217 | D44: 1 | E44: OTSKP-ŽS | F44: ZATAŽENÍ A SPOJKOVÁNÍ KABELŮ DO 12 PÁRŮ - MONTÁŽ | G44: kmpár | H44: =7*1.4 -> 9.8 | K44: 16030 | L44: =ROUND((ROUND(H44,3))*(ROUND(K44,2)),2) -> 157094
A45: PP | F45: Zatažení a spojování 7p kabelu v délce 1400 m.
A46: VV | F46: Technická specifikace položky odpovídá příslušné cenové soustavě.
A47: P | B47: =1+MAX($B$13:B46) -> 12 | C47: 75A218 | D47: 1 | E47: OTSKP-ŽS | F47: ZATAŽENÍ A SPOJKOVÁNÍ KABELŮ DO 12 PÁRŮ - DEMONTÁŽ | G47: kmpár | H47: =7*1.4 -> 9.8 | K47: 4809 | L47: =ROUND((ROUND(H47,3))*(ROUND(K47,2)),2) -> 47128.2
A48: PP | F48: Demontáž stávajícího 7p kabelu v délce 1400 m.
A49: VV | F49: Technická specifikace položky odpovídá příslušné cenové soustavě.
A50: P | B50: =1+MAX($B$13:B49) -> 13 | C50: 75I22X | D50: 1 | E50: OTSKP-ŽS | F50: KABEL ZEMNÍ DVOUPLÁŠŤOVÝ BEZ PANCÍŘE PRŮMĚRU ŽÍLY 0,8 MM - MONTÁŽ | G50: m | H50: =2520+350+1400+350 -> 4620 | K50: 40 | L50: =ROUND((ROUND(H50,3))*(ROUND(K50,2)),2) -> 184800
A51: PP | F51: Zatažení 5XN a 10XN kabelu.
A52: VV | F52: Technická specifikace položky odpovídá příslušné cenové soustavě.
A53: P | B53: =1+MAX($B$13:B52) -> 14 | C53: 75I22Y | D53: 1 | E53: OTSKP-ŽS | F53: KABEL ZEMNÍ DVOUPLÁŠŤOVÝ BEZ PANCÍŘE PRŮMĚRU ŽÍLY 0,8 MM - DEMONTÁŽ | G53: m | H53: =H50 -> 4620 | K53: 31 | L53: =ROUND((ROUND(H53,3))*(ROUND(K53,2)),2) -> 143220
A54: PP | F54: Demontáž stávajícího 5XN a 10XN kabelu.
A55: VV | F55: Technická specifikace položky odpovídá příslušné cenové soustavě.
A56: P | B56: =1+MAX($B$13:B55) -> 15 | C56: 75I71Yr1 | D56: 1 | E56: OTSKP-ŽS | F56: KABEL HYBRIDNÍ TRAŤOVÝ KOMBINOVANÝ - DEMONTÁŽ | G56: m | H56: 2520 | K56: 31 | L56: =ROUND((ROUND(H56,3))*(ROUND(K56,2)),2) -> 78120
A57: PP | F57: Demontáž stávajícího TKK v délce 2520 m.
A58: VV | F58: Technická specifikace položky odpovídá příslušné cenové soustavě s výjimkou specifikace kabelu.
A59: P | B59: =1+MAX($B$13:B58) -> 16 | C59: 75I833 | D59: 1 | E59: OTSKP-ŽS | F59: KABEL OPTICKÝ MIKROKABEL DO 72 VLÁKEN | G59: m | H59: =48*2.52 -> 120.96 | K59: 1942 | L59: =ROUND((ROUND(H59,3))*(ROUND(K59,2)),2) -> 234904.32
A60: PP | F60: Dodávka 48vl. kabelu.
A61: VV | F61: Technická specifikace položky odpovídá příslušné cenové soustavě.
A62: P | B62: =1+MAX($B$13:B61) -> 17 | C62: 75I83X | D62: 1 | E62: OTSKP-ŽS | F62: KABEL OPTICKÝ MIKROKABEL - MONTÁŽ | G62: m | H62: 2520 | K62: 62 | L62: =ROUND((ROUND(H62,3))*(ROUND(K62,2)),2) -> 156240
A63: PP | F63: Montáž 48vl. kabelu.
A64: VV | F64: Technická specifikace položky odpovídá příslušné cenové soustavě.
A65: P | B65: =1+MAX($B$13:B64) -> 18 | C65: 75II71 | D65: 1 | E65: OTSKP-ŽS | F65: SPOJKA OPTICKÁ DO 72 VLÁKEN | G65: kus | H65: 2 | K65: 45172 | L65: =ROUND((ROUND(H65,3))*(ROUND(K65,2)),2) -> 90344
A66: PP | F66: Naspojkování optického kabelu ve stávajících kabelových komorách.
A67: VV | F67: Technická specifikace položky odpovídá příslušné cenové soustavě.
A68: P | B68: =1+MAX($B$13:B67) -> 19 | C68: 75II7X | D68: 1 | E68: OTSKP-ŽS | F68: SPOJKA OPTICKÁ - MONTÁŽ | G68: kus | H68: 2 | K68: 35320 | L68: =ROUND((ROUND(H68,3))*(ROUND(K68,2)),2) -> 70640
A69: PP | F69: Naspojkování optického kabelu ve stávajících kabelových komorách.
A70: VV | F70: Technická specifikace položky odpovídá příslušné cenové soustavě.
A71: P | B71: =1+MAX($B$13:B70) -> 20 | C71: 75I911 | D71: 1 | E71: OTSKP-ŽS | F71: OPTOTRUBKA HDPE PRŮMĚRU DO 40 MM | G71: m | H71: =2*2520 -> 5040 | K71: 52 | L71: =ROUND((ROUND(H71,3))*(ROUND(K71,2)),2) -> 262080
A72: PP | F72: Dvě optotrubky 40 mm o délce 2520 m.
A73: VV | F73: Technická specifikace položky odpovídá příslušné cenové soustavě.
A74: P | B74: =1+MAX($B$13:B73) -> 21 | C74: 75I91X | D74: 1 | E74: OTSKP-ŽS | F74: OPTOTRUBKA HDPE - MONTÁŽ | G74: m | H74: =H71 -> 5040 | K74: 40 | L74: =ROUND((ROUND(H74,3))*(ROUND(K74,2)),2) -> 201600
A75: PP | F75: Dvě optotrubky 40 mm o délce 2520 m.
A76: VV | F76: Technická specifikace položky odpovídá příslušné cenové soustavě.
A77: P | B77: =1+MAX($B$13:B76) -> 22 | C77: 75IA11 | D77: 1 | E77: OTSKP-ŽS | F77: OPTOTRUBKOVÁ SPOJKA PRŮMĚRU DO 40 MM | G77: kus | H77: 12 | K77: 162 | L77: =ROUND((ROUND(H77,3))*(ROUND(K77,2)),2) -> 1944
A78: PP | F78: Spojkování dvou optotrubek v 7 bodech. Ve dvou jen na jedné trubce.
A79: VV | F79: Technická specifikace položky odpovídá příslušné cenové soustavě.
A80: P | B80: =1+MAX($B$13:B79) -> 23 | C80: 75IA1X | D80: 1 | E80: OTSKP-ŽS | F80: OPTOTRUBKOVÁ SPOJKA - MONTÁŽ | G80: kus | H80: 12 | K80: 180 | L80: =ROUND((ROUND(H80,3))*(ROUND(K80,2)),2) -> 2160
A81: PP | F81: Spojkování dvou optotrubek v 7 bodech. Ve dvou jen na jedné trubce.
A82: VV | F82: Technická specifikace položky odpovídá příslušné cenové soustavě.
A83: P | B83: =1+MAX($B$13:B82) -> 24 | C83: 75IA61 | D83: 1 | E83: OTSKP-ŽS | F83: OPTOTRUBKOVÁ KONCOVKA S VENTILKEM PRŮMĚRU DO 40 MM | G83: kus | H83: 2 | K83: 350 | L83: =ROUND((ROUND(H83,3))*(ROUND(K83,2)),2) -> 700
A84: PP | F84: Ukončení rezervní optotrubky.
A85: VV | F85: Technická specifikace položky odpovídá příslušné cenové soustavě.
A86: P | B86: =1+MAX($B$13:B85) -> 25 | C86: 75IA6X | D86: 1 | E86: OTSKP-ŽS | F86: OPTOTRUBKOVÁ KONCOVKA S VENTILKEM- MONTÁŽ | G86: kus | H86: 2 | K86: 95 | L86: =ROUND((ROUND(H86,3))*(ROUND(K86,2)),2) -> 190
A87: PP | F87: Ukončení rezervní optotrubky.
A88: VV | F88: Technická specifikace položky odpovídá příslušné cenové soustavě.
A89: P | B89: =1+MAX($B$13:B88) -> 26 | C89: 75ID21 | D89: 1 | E89: OTSKP-ŽS | F89: PLASTOVÁ ZEMNÍ KOMORA PRO ULOŽENÍ SPOJKY - DODÁVKA | G89: kus | H89: 4 | K89: 19750 | L89: =ROUND((ROUND(H89,3))*(ROUND(K89,2)),2) -> 79000
A90: PP | F90: Uložení rezervy a případné spojky ve 4 bodech kabelové trasy.
A91: VV | F91: Technická specifikace položky odpovídá příslušné cenové soustavě.
A92: P | B92: =1+MAX($B$13:B91) -> 27 | C92: 75D2X | D92: 1 | E92: OTSKP-ŽS | F92: PLASTOVÁ ZEMNÍ KOMORA PRO ULOŽENÍ SPOJKY - MONTÁŽ | G92: kus | H92: 4 | K92: 4000 | L92: =ROUND((ROUND(H92,3))*(ROUND(K92,2)),2) -> 16000
A93: PP | F93: Uložení rezervy a případné spojky ve 4 bodech kabelové trasy.
A94: VV | F94: Technická specifikace položky odpovídá příslušné cenové soustavě.
A95: P | B95: =1+MAX($B$13:B94) -> 28 | C95: 75A111 | D95: 1 | E95: OTSKP-ŽS | F95: KABEL METALICKÝ DVOUPLÁŠŤOVÝ DO 12 PÁRŮ - DODÁVKA | G95: kmpár | H95: =1.4*7 -> 9.8 | K95: 12227 | L95: =ROUND((ROUND(H95,3))*(ROUND(K95,2)),2) -> 119824.6
A96: PP | F96: 7p kabel v délce náhrady kabelu.
A97: VV | F97: Technická specifikace položky odpovídá příslušné cenové soustavě.
A98: P | B98: =1+MAX($B$13:B97) -> 29 | C98: 75I221 | D98: 1 | E98: OTSKP-ŽS | F98: KABEL ZEMNÍ DVOUPLÁŠŤOVÝ BEZ PANCÍŘE PRŮMĚRU ŽÍLY 0,8 MM DO 5XN | G98: km4 | H98: =5*1.4 -> 7 | K98: 19858 | L98: =ROUND((ROUND(H98,3))*(ROUND(K98,2)),2) -> 139006
A99: PP | F99: 5XN sdělovací kabel v celé délce 2520 m.
A100: VV | F100: Technická specifikace položky odpovídá příslušné cenové soustavě.
A101: P | B101: =1+MAX($B$13:B100) -> 30 | C101: 75I222 | D101: 1 | E101: OTSKP-ŽS | F101: KABEL ZEMNÍ DVOUPLÁŠŤOVÝ BEZ PANCÍŘE PRŮMĚRU ŽÍLY 0,8 MM DO 25XN | G101: km4 | H101: =2.52*10 -> 25.2 | K101: 8675 | L101: =ROUND((ROUND(H101,3))*(ROUND(K101,2)),2) -> 218610
A102: PP | F102: 10XN sdělovací kabel v celé délce 2520 m.
A103: VV | F103: Technická specifikace položky odpovídá příslušné cenové soustavě.
B104: =1+MAX($B$13:B103) -> 31 | C104: 14173 | D104: 1 | E104: OTSKP-ŽS | F104: PROTLAČOVÁNÍ POTRUBÍ Z PLAST HMOT DN DO 200 MM | G104: m | H104: 66 | K104: 2680 | L104: =ROUND((ROUND(H104,3))*(ROUND(K104,2)),2) -> 176880
F105: Podchod pod náspem v km 151,123.
F106: Technická specifikace položky odpovídá příslušné cenové soustavě.
B107: =1+MAX($B$13:B106) -> 32 | C107: 03170 | D107: 1 | E107: OTSKP-ŽS | F107: ZAŘÍZENÍ STAVENIŠTĚ - KOMUNIKACE A ZPEV PLOCHY | G107: kpl | H107: 1 | K107: 487300 | L107: =ROUND((ROUND(H107,3))*(ROUND(K107,2)),2) -> 487300
F108: Zakrytí provizorní kabelové trasy panely.. Šířka zakrytí 5 metrů, délka úseku 220 metrů..
F109: Technická specifikace položky odpovídá příslušné cenové soustavě.
A110: P | B110: =1+MAX($B$13:B109) -> 33 | C110: 75IJ22 | D110: 1 | E110: OTSKP-ŽS | F110: MĚŘENÍ ZKRÁCENÉ ZÁVĚREČNÉ DÁLKOVÉHO KABELU V JEDNOM SMĚRU ZA PROVOZU | G110: 4 | H110: 30 | K110: 991 | L110: =ROUND((ROUND(H110,3))*(ROUND(K110,2)),2) -> 29730
A111: PP | F111: 5XN a 10XN kabely. Měření dvakrát.
A112: VV | F112: Technická specifikace položky odpovídá příslušné cenové soustavě.
A113: P | B113: =1+MAX($B$13:B112) -> 34 | C113: 75IK11 | D113: 1 | E113: OTSKP-ŽS | F113: MĚŘENÍ STÁVAJÍCÍHO OPTICKÉHO KABELU | G113: vláken. | H113: 48 | K113: 1250 | L113: =ROUND((ROUND(H113,3))*(ROUND(K113,2)),2) -> 60000
A114: PP | F114: Optický kabel.
A115: VV | F115: Technická specifikace položky odpovídá příslušné cenové soustavě.
A116: D | B116: Součet | C116: za Díl | F116: Zemní práce a kabelizace | L116: =SUM(L14:L115) -> 4627302.12

Sheet Kategorie monitoringu (hidden)
A1: E.1.1.1 | B1: Železniční svršek
A2: E.1.1.2 | B2: Železniční spodek
A3: E.1.2 | B3: Nástupiště
A4: E.1.3 | B4: Železniční přejezdy
A5: E.1.4 | B5: Mosty, propustky, zdi
A6: E.1.5 | B6: Ostatní inženýrské objekty
A7: E.1.6 | B7: Potrubní vedení
A8: E.1.7 | B8: Železniční tunely
A9: E.1.8 | B9: Pozemní komunikace
A10: E.1.9 | B10: Kabelovody, kolektory
A11: E.1.10 | B11: Protihlukové objekty
A12: E.2 | B12: Pozemní stavební objekty
A13: E.3.1 | B13: Trakční vedení
A14: E.3.2 | B14: Napájecí stanice (měnírna, trakční transformovna) – stavební část
A15: E.3.3 | B15: Spínací stanice – stavební část
A16: E.3.4 | B16: Ohřev výměn (elektrický - EOV, plynový - POV)
A17: E.3.5 | B17: Elektrické předtápěcí zařízení (EPZ)
A18: E.3.6 | B18: Rozvodny vn, nn, osvětlení a dálkové ovládání odpojovačů
A19: E.3.7 | B19: Ukolejnění kovových konstrukcí
A20: E.3.8 | B20: Vnější uzemnění
A21: E.3.9 | B21: Ostatní kabelizace
A22: D.1 | B22: Železniční zabezpečovací zařízení
A23: D.2 | B23: Železniční sdělovací zařízení
A24: D.3 | B24: Silnoproudá technologie včetně DŘT
A25: D.4 | B25: Ostatní technologická zařízení

Sheet hide (hidden)
A1: P | D1: 1 | L1: =ROUND((ROUND(H1,3))*(ROUND(K1,2)),2) -> 0
A2: PP
A3: VV
A4: TS
B6: Saoučet za díl: | F6: Zemní práce
A8: DD | B8: Díl: | F8: Název dílu
